bitfinex-derivatives/quotes_BTCF0:USTF0_20250718
["timestamp","ask_amount","ask_price","bid_price","bid_amount"]
[1752843148681,0.12640783,119550.0,119540.0,2.62235693]
[1752843148882,0.12640783,119550.0,119540.0,3.47236963]
[1752843150183,0.10363783,119550.0,119540.0,3.47236963]
[1752843150683,0.07925783,119550.0,119540.0,3.47236963]
[1752843151083,0.10363783,119550.0,119540.0,3.47236963]
[1752843151687,0.10363783,119550.0,119540.0,3.41245]
[1752843152190,0.10363783,119550.0,119540.0,3.4723357]
[1752843152386,0.12640783,119550.0,119540.0,3.41245]
[1752843152683,0.07925783,119550.0,119540.0,3.41245]
[1752843152891,0.07925783,119550.0,119540.0,3.47233128]
[1752843153188,0.10363783,119550.0,119540.0,3.47233128]
[1752843153388,0.12640783,119550.0,119540.0,3.47233128]
[1752843154192,0.10363783,119550.0,119540.0,3.47233128]
[1752843155693,0.12640783,119550.0,119540.0,3.47233128]
[1752843158691,0.10363783,119550.0,119540.0,3.47233128]
[1752843158896,0.07925783,119550.0,119540.0,3.47233128]
[1752843160200,0.07925783,119550.0,119540.0,3.41245]
[1752843160389,0.07925783,119550.0,119540.0,3.48729047]
[1752843160594,0.07925783,119550.0,119540.0,3.41245]
[1752843161094,0.07925783,119550.0,119540.0,2.83133]
[1752843161300,0.07925783,119550.0,119540.0,3.41185]
[1752843165504,0.05612783,119550.0,119540.0,3.47173086]
[1752843168109,0.05612783,119550.0,119540.0,3.41185]
[1752843170707,0.07889783,119550.0,119540.0,2.83133]
[1752843170908,0.14695783,119550.0,119540.0,2.39004365]
[1752843171115,0.14695783,119550.0,119540.0,3.03017205]
[1752843171409,0.14695783,119550.0,119540.0,3.39529]
[1752843171606,0.14195783,119550.0,119540.0,3.39529]
[1752843171803,0.14195783,119550.0,119540.0,2.39004365]
[1752843172008,0.14195783,119550.0,119540.0,2.97028365]
[1752843173211,0.14195783,119550.0,119540.0,3.45520045]
[1752843174710,0.14195783,119550.0,119540.0,2.60518775]
[1752843174911,0.14195783,119550.0,119540.0,3.0301941]
[1752843175509,0.14195783,119550.0,119540.0,2.4499541]
[1752843175709,0.14195783,119550.0,119540.0,3.0301541]
[1752843175913,0.14195783,119550.0,119540.0,3.0301141]
[1752843176109,0.14195783,119550.0,119540.0,2.4499541]
[1752843176413,0.14195783,119550.0,119540.0,3.0301141]
[1752843179015,0.14195783,119550.0,119540.0,3.45512045]
[1752843179819,0.14195783,119550.0,119540.0,3.39521]
[1752843180413,0.14195783,119550.0,119540.0,2.81505]
[1752843180617,0.14195783,119550.0,119540.0,3.39513]
[1752843180809,0.14195783,119550.0,119540.0,3.39509]
[1752843182317,0.14195783,119550.0,119540.0,3.45501749]
[1752843184422,0.10647783,119550.0,119540.0,3.45501749]
[1752843184617,0.05112783,119550.0,119540.0,3.39509]
[1752843185524,0.09989783,119550.0,119540.0,3.39509]
[1752843186423,0.10809783,119550.0,119540.0,3.39509]
[1752843187525,0.10809783,119550.0,119540.0,3.45501599]
[1752843187824,0.10809783,119550.0,119540.0,3.39509]
[1752843188020,0.12361783,119550.0,119540.0,3.39493]
[1752843188225,0.13900783,119550.0,119540.0,3.45485676]
[1752843188526,0.13900783,119550.0,119540.0,3.39493]
[1752843195834,0.13900783,119550.0,119540.0,2.5449173]
[1752843196230,0.13900783,119550.0,119540.0,3.39493]
[1752843198242,0.13900783,119550.0,119540.0,2.5449173]
[1752843198445,0.13900783,119550.0,119540.0,3.39493]
[1752843203242,0.13900783,119550.0,119540.0,2.81505]
[1752843203442,0.13900783,119550.0,119540.0,3.39461]
[1752843203943,0.13900783,119550.0,119540.0,3.46945047]
[1752843205045,0.13900783,119550.0,119540.0,3.39461]
[1752843205950,0.10809783,119550.0,119540.0,3.39461]
[1752843206149,0.10809783,119550.0,119540.0,3.46945047]
[1752843206349,0.10809783,119550.0,119540.0,3.39461]
[1752843207752,0.10809783,119550.0,119540.0,3.45459509]
[1752843211757,0.10809783,119550.0,119540.0,3.39461]
[1752843213262,0.10809783,119550.0,119540.0,3.45460141]
[1752843213462,0.10809783,119550.0,119540.0,3.39461]
[1752843213962,0.10809783,119550.0,119540.0,3.41320672]
[1752843214865,0.10809783,119550.0,119540.0,3.47319851]
[1752843217166,0.10809783,119550.0,119540.0,3.41320672]
[1752843223381,0.10809783,119550.0,119540.0,3.48804719]
[1752843225578,0.10809783,119550.0,119540.0,3.41320672]
[1752843229377,0.10809783,119550.0,119540.0,3.48804719]
[1752843229577,0.10809783,119550.0,119540.0,3.41320672]
[1752843229975,0.10809783,119550.0,119540.0,3.48804719]
[1752843230382,0.10809783,119550.0,119540.0,2.90848719]
[1752843230581,0.10809783,119550.0,119540.0,3.48740719]
[1752843230781,0.12412783,119550.0,119540.0,3.48740719]
[1752843231282,0.12412783,119550.0,119540.0,3.41256672]
[1752843231484,0.14431783,119550.0,119540.0,2.83364672]
[1752843231784,0.73652748,119550.0,119540.0,2.37927672]
[1752843231984,0.73652748,119550.0,119540.0,2.86426794]
[1752843232386,0.73652748,119550.0,119540.0,2.80428307]
[1752843232881,0.73652748,119550.0,119540.0,2.22540307]
[1752843233080,0.73652748,119550.0,119540.0,2.37927672]
[1752843233481,0.90383148,119550.0,119540.0,2.42419953]
[1752843234077,0.90383148,119550.0,119540.0,2.84920588]
[1752843234684,0.47882513,119550.0,119540.0,2.84920588]
[1752843234985,0.90383148,119550.0,119540.0,3.01642318]
[1752843235581,0.90383148,119550.0,119540.0,2.87916471]
[1752843235777,0.90383148,119550.0,119540.0,2.8342019]
[1752843236185,0.90383148,119550.0,119540.0,3.0014192]
[1752843237390,0.90383148,119550.0,119540.0,2.4225792]
[1752843237591,0.90383148,119550.0,119540.0,3.0013792]
[1752843237784,0.73652748,119550.0,119540.0,3.0013792]
[1752843241889,0.73652748,119550.0,119540.0,2.57637285]
[1752843242091,0.73652748,119550.0,119540.0,3.0012992]
[1752843243297,0.73652748,119550.0,119540.0,3.02372905]
[1752843243787,0.73652748,119550.0,119540.0,3.0012992]
[1752843244394,0.73652748,119550.0,119540.0,3.02372693]
[1752843244594,0.73652748,119550.0,119540.0,3.0012992]
[1752843246698,0.73652748,119550.0,119540.0,2.57629285]
[1752843246994,0.73652748,119550.0,119540.0,2.66292505]
[1752843248697,0.73652748,119550.0,119540.0,2.66292159]
[1752843250193,0.31152113,119550.0,119540.0,2.66292159]
[1752843250388,0.31152113,119550.0,119540.0,2.6404992]
[1752843253402,0.31152113,119550.0,119540.0,1.5802992]
[1752843253697,0.31152113,119550.0,119540.0,1.9410992]
[1752843256897,0.31152113,119550.0,119540.0,1.95610318]
[1752843257093,0.31152113,119550.0,119540.0,1.98601534]
[1752843257295,0.26710113,119550.0,119540.0,1.95610318]
[1752843257491,0.26710113,119550.0,119540.0,1.94105701]
[1752843257802,0.27506113,119550.0,119540.0,1.94105701]
[1752843258103,0.27506113,119550.0,119540.0,1.51605066]
[1752843258401,0.27506113,119550.0,119540.0,1.98601982]
[1752843259100,0.27506113,119550.0,119540.0,1.94105701]
[1752843259497,0.27506113,119550.0,119540.0,1.98601982]
[1752843261404,0.27506113,119550.0,119540.0,1.95610318]
[1752843269417,0.29127113,119550.0,119540.0,1.95610318]
[1752843269712,0.30665113,119550.0,119540.0,1.53109683]
[1752843270017,0.31078113,119550.0,119540.0,1.95610318]
[1752843280322,0.31078113,119550.0,119540.0,1.95608472]
[1752843280922,0.31078113,119550.0,119540.0,1.91114037]
[1752843281325,0.14357783,119550.0,119540.0,1.91114037]
[1752843281526,0.31078113,119550.0,119540.0,1.95608978]
[1752843283022,0.73578748,119550.0,119540.0,1.37736978]
[1752843283425,0.31078113,119550.0,119540.0,1.37736978]
[1752843283723,0.31078113,119550.0,119540.0,1.95524978]
[1752843285831,0.73578748,119550.0,119540.0,1.95524978]
[1752843287229,0.31078113,119550.0,119540.0,1.95524978]
[1752843287532,0.73578748,119550.0,119540.0,1.95524978]
[1752843287934,0.31078113,119550.0,119540.0,1.95524978]
[1752843288233,0.73578748,119550.0,119540.0,1.95524978]
[1752843288532,0.73570148,119550.0,119540.0,1.95524978]
[1752843289623,0.73570148,119550.0,119540.0,1.53024343]
[1752843289932,0.73570148,119550.0,119540.0,1.95524978]
[1752843293635,0.31069513,119550.0,119540.0,1.95524978]
[1752843293834,0.73570148,119550.0,119540.0,1.95524978]
[1752843294036,0.73570148,119550.0,119540.0,1.53024343]
[1752843294334,0.73570148,119550.0,119540.0,1.95524978]
[1752843296639,0.73570148,119550.0,119540.0,1.59444978]
[1752843297236,0.31069513,119550.0,119540.0,1.59444978]
[1752843297438,0.73570148,119550.0,119540.0,1.59444978]
[1752843300746,0.31069513,119550.0,119540.0,1.59444978]
[1752843306347,0.73570148,119550.0,119540.0,1.59444978]
[1752843306943,0.73570148,119550.0,119540.0,1.16944343]
[1752843307147,0.73570148,119550.0,119540.0,0.59156343]
[1752843307349,0.73570148,119550.0,119540.0,1.00186613]
[1752843307549,0.73570148,119550.0,119540.0,1.16908343]
[1752843307946,0.73570148,119550.0,119540.0,1.59408978]
[1752843308942,0.31069513,119550.0,119540.0,1.59408978]
[1752843309147,0.73570148,119550.0,119540.0,1.59408978]
[1752843309449,0.31069513,119550.0,119540.0,1.59408978]
[1752843309649,0.73570148,119550.0,119540.0,1.59408978]
[1752843310150,0.31069513,119550.0,119540.0,1.59408978]
[1752843310350,0.73570148,119550.0,119540.0,1.59408978]
[1752843310747,0.73570148,119550.0,119540.0,1.23328978]
[1752843310948,0.73570148,119550.0,119540.0,1.59408978]
[1752843311543,0.31069513,119550.0,119540.0,1.59408978]
[1752843311948,0.73570148,119550.0,119540.0,1.59408978]
[1752843312649,0.31069513,119550.0,119540.0,1.59408978]
[1752843312844,0.73570148,119550.0,119540.0,1.59408978]
[1752843313144,0.31069513,119550.0,119540.0,1.59408978]
[1752843313348,0.73570148,119550.0,119540.0,1.59408978]
[1752843313554,0.31069513,119550.0,119540.0,1.16908343]
[1752843313962,0.73570148,119550.0,119540.0,1.59408978]
[1752843314148,0.31069513,119550.0,119540.0,1.16908343]
[1752843314451,0.73570148,119550.0,119540.0,1.59408978]
[1752843315251,0.73570148,119550.0,119540.0,1.16908343]
[1752843315450,0.73570148,119550.0,119540.0,1.59408978]
[1752843317162,0.73570148,119550.0,119540.0,1.16908343]
[1752843317460,0.73570148,119550.0,119540.0,1.59408978]
[1752843318158,0.31069513,119550.0,119540.0,1.59408978]
[1752843318359,0.73570148,119550.0,119540.0,1.59408978]
[1752843320262,0.31069513,119550.0,119540.0,1.59408978]
[1752843320469,0.73570148,119550.0,119540.0,1.59408978]
[1752843321465,0.31069513,119550.0,119540.0,1.59408978]
[1752843321667,0.73570148,119550.0,119540.0,1.59408978]
[1752843321873,0.31069513,119550.0,119540.0,1.59408978]
[1752843322062,0.73570148,119550.0,119540.0,1.59408978]
[1752843323564,0.31069513,119550.0,119540.0,1.59408978]
[1752843323965,0.10777183,119550.0,119540.0,1.01656978]
[1752843324167,0.10777183,119550.0,119540.0,1.59392978]
[1752843325171,0.10677183,119550.0,119540.0,1.59392978]
[1752843325371,0.10577183,119550.0,119540.0,1.59792978]
[1752843326166,0.27297513,119550.0,119540.0,1.59792978]
[1752843326469,0.27297513,119550.0,119540.0,1.17292343]
[1752843326674,0.27297513,119550.0,119540.0,1.59792978]
[1752843327174,0.27297513,119550.0,119540.0,1.17292343]
[1752843327369,0.27297513,119550.0,119540.0,1.59792978]
[1752843328073,0.27297513,119550.0,119540.0,1.95872978]
[1752843330176,0.10577183,119550.0,119540.0,1.95872978]
[1752843330975,0.27297513,119550.0,119540.0,1.95872978]
[1752843331176,0.27297513,119550.0,119540.0,1.95873139]
[1752843331377,0.10577183,119550.0,119540.0,1.95873139]
[1752843332373,0.27297513,119550.0,119540.0,1.95873139]
[1752843332879,0.10577183,119550.0,119540.0,1.95873139]
[1752843334377,0.27297513,119550.0,119540.0,1.95873139]
[1752843334577,0.10577183,119550.0,119540.0,1.95873139]
[1752843336277,0.27297513,119550.0,119540.0,1.95873139]
[1752843336482,0.27297513,119550.0,119540.0,1.95904244]
[1752843336781,0.10577183,119550.0,119540.0,1.95904244]
[1752843338177,0.10577183,119550.0,119540.0,1.91409142]
[1752843338378,0.09781183,119550.0,119540.0,1.91409142]
[1752843338577,0.10536183,119550.0,119540.0,1.91409142]
[1752843339076,0.09781183,119550.0,119540.0,1.91409142]
[1752843339282,0.09781183,119550.0,119540.0,1.95905538]
[1752843339783,0.10536183,119550.0,119540.0,1.95905538]
[1752843340682,0.27256513,119550.0,119540.0,1.95905538]
[1752843342387,0.27256513,119550.0,119540.0,1.53404903]
[1752843342582,0.28796513,119550.0,119540.0,1.95905538]
[1752843343488,0.12076183,119550.0,119540.0,1.95905538]
[1752843343986,0.28796513,119550.0,119540.0,1.48908507]
[1752843344188,0.10536183,119550.0,119540.0,1.91409142]
[1752843344383,0.27256513,119550.0,119540.0,1.91409142]
[1752843345887,0.10536183,119550.0,119540.0,1.91409142]
[1752843346088,0.27256503,119550.0,119540.0,1.91409142]
[1752843346683,0.27256503,119550.0,119540.0,1.48908507]
[1752843346884,0.27256503,119550.0,119540.0,1.91409142]
[1752843350601,0.10536183,119550.0,119540.0,1.91409142]
[1752843352297,0.10536183,119550.0,119540.0,1.48908507]
[1752843352595,0.10536183,119550.0,119540.0,1.91409142]
[1752843354094,0.10536183,119550.0,119540.0,1.9590498]
[1752843357395,0.27256523,119550.0,119540.0,1.9590498]
[1752843357589,0.27256523,119550.0,119540.0,1.91409142]
[1752843359494,0.10536183,119550.0,119540.0,1.91409142]
[1752843362398,0.27256523,119550.0,119540.0,1.91409142]
[1752843363704,0.28895523,119550.0,119540.0,1.91409142]
[1752843364002,0.30444523,119550.0,119540.0,1.91409142]
[1752843364303,0.30827523,119550.0,119540.0,1.91409142]
[1752843365796,0.30827523,119550.0,119540.0,1.48908507]
[1752843365998,0.30827523,119550.0,119540.0,1.91409142]
[1752843370999,0.73328158,119550.0,119540.0,1.91389142]
[1752843371301,0.73328158,119550.0,119540.0,1.91385142]
[1752843372901,0.73328158,119550.0,119540.0,1.91385152]
[1752843373104,0.73328158,119550.0,119540.0,1.48884517]
[1752843373406,0.30827523,119550.0,119540.0,1.91385152]
[1752843373609,0.73328158,119550.0,119540.0,1.91385152]
[1752843374105,0.30827523,119550.0,119540.0,1.91385152]
[1752843374305,0.73328158,119550.0,119540.0,1.91385152]
[1752843374507,0.30827523,119550.0,119540.0,1.91385152]
[1752843375208,0.30827523,119550.0,119540.0,1.48884517]
[1752843375408,0.30827523,119550.0,119540.0,1.91385152]
[1752843376813,0.30827523,119550.0,119540.0,1.48884517]
[1752843377005,0.30827523,119550.0,119540.0,1.91385152]
[1752843377310,0.30827523,119550.0,119540.0,1.48884517]
[1752843377509,0.30827523,119550.0,119540.0,1.91385152]
[1752843378710,0.27256523,119550.0,119540.0,1.91385152]
[1752843378908,0.10536183,119550.0,119540.0,1.97383639]
[1752843379109,0.27256523,119550.0,119540.0,1.97383639]
[1752843379304,0.27256523,119550.0,119540.0,1.91385152]
[1752843384212,0.10536183,119550.0,119540.0,1.91385152]
[1752843384413,0.09781183,119550.0,119540.0,1.91385152]
[1752843385113,0.26501523,119550.0,119540.0,1.91385152]
[1752843385412,0.27232523,119550.0,119540.0,1.91385152]
[1752843392517,0.30424523,119550.0,119540.0,1.91385152]
[1752843393016,0.30801523,119550.0,119540.0,1.91385152]
[1752843401225,0.30801523,119550.0,119540.0,1.48884517]
[1752843401517,0.30801523,119550.0,119540.0,1.91385152]
[1752843403930,0.30801523,119550.0,119540.0,1.74663412]
[1752843404525,0.29182523,119550.0,119540.0,1.74663412]
[1752843404730,0.29182523,119550.0,119540.0,1.91385152]
[1752843404932,0.29182523,119550.0,119540.0,1.74663412]
[1752843405931,0.29182523,119550.0,119540.0,1.91385152]
[1752843406228,0.04904183,119550.0,119540.0,2.39884274]
[1752843406427,0.04904183,119550.0,119540.0,2.39856274]
[1752843406736,0.04904183,119550.0,119540.0,1.82172274]
[1752843407031,0.04904183,119550.0,119540.0,2.39856274]
[1752843408133,0.10533183,119550.0,119540.0,1.39671639]
[1752843408335,0.10533183,119550.0,119540.0,1.97355639]
[1752843408529,0.10533183,119550.0,119540.0,2.39856274]
[1752843409431,0.10533183,119550.0,119540.0,1.54855004]
[1752843409639,0.10533183,119550.0,119540.0,1.97351639]
[1752843413240,0.10533183,119550.0,119540.0,2.39852274]
[1752843414739,0.09802183,119550.0,119540.0,2.39852274]
[1752843414941,0.09802183,119550.0,119540.0,2.39552274]
[1752843415136,0.09802183,119550.0,119540.0,2.39952274]
[1752843415841,0.09802183,119550.0,119540.0,2.39852274]
[1752843416036,0.09802183,119550.0,119540.0,2.40052274]
[1752843418132,0.09802183,119550.0,119540.0,1.55051004]
[1752843418338,0.09802183,119550.0,119540.0,2.40052274]
[1752843420134,0.10531183,119550.0,119540.0,2.34053787]
[1752843420840,0.10531183,119550.0,119540.0,2.40046545]
[1752843423748,0.10531183,119550.0,119540.0,1.82366545]
[1752843423939,0.10531183,119550.0,119540.0,2.40190545]
[1752843424344,0.10531183,119550.0,119540.0,1.55189275]
[1752843424545,0.10531183,119550.0,119540.0,2.40190545]
[1752843426243,0.10531183,119550.0,119540.0,2.34197787]
[1752843431146,0.10531183,119550.0,119540.0,1.49196517]
[1752843431446,0.10531183,119550.0,119540.0,2.34197787]
[1752843431645,0.10531183,119550.0,119540.0,1.49196517]
[1752843431846,0.10531183,119550.0,119540.0,1.76373787]
[1752843432148,0.10531183,119550.0,119540.0,2.34293787]
[1752843432946,0.09802183,119550.0,119540.0,2.40286545]
[1752843434747,0.04904183,119550.0,119540.0,2.40286545]
[1752843435449,0.00729,119580.0,119570.0,0.2006054]
[1752843435649,0.00729,119580.0,119570.0,2.44778959]
[1752843435849,0.00729,119580.0,119570.0,2.02278324]
[1752843436850,0.00729,119580.0,119570.0,2.02286324]
[1752843436851,0.1744514,119580.0,119570.0,2.02286324]
[1752843437041,0.04634,119580.0,119570.0,2.09068373]
[1752843437241,0.05134,119580.0,119570.0,2.09063243]
[1752843437446,0.09846,119580.0,119570.0,2.09063243]
[1752843438254,0.2656214,119580.0,119570.0,2.09063243]
[1752843439854,0.2656214,119580.0,119570.0,2.09850334]
[1752843440455,0.2656214,119580.0,119570.0,1.67349699]
[1752843440855,0.2656214,119580.0,119570.0,2.09850334]
[1752843441256,0.69062775,119580.0,119570.0,0.91643159]
[1752843441555,0.2656214,119580.0,119570.0,1.88251224]
[1752843441951,0.69062775,119580.0,119570.0,2.07246764]
[1752843442251,0.69062775,119580.0,119570.0,1.48028589]
[1752843442458,0.69062775,119580.0,119570.0,2.07246764]
[1752843442658,0.69062775,119580.0,119570.0,1.49358764]
[1752843442858,0.69062775,119580.0,119570.0,2.04960764]
[1752843443657,0.69062775,119580.0,119570.0,1.62460129]
[1752843443858,0.69062775,119580.0,119570.0,2.04960764]
[1752843444059,0.69062775,119580.0,119570.0,2.04968764]
[1752843444260,0.69062775,119580.0,119570.0,1.62468129]
[1752843444455,0.69062775,119580.0,119570.0,1.47080764]
[1752843444656,0.69062775,119580.0,119570.0,1.68884764]
[1752843445755,0.69062775,119580.0,119570.0,1.71162764]
[1752843447761,0.69062775,119580.0,119570.0,1.28662129]
[1752843447959,0.2656214,119580.0,119570.0,1.13278764]
[1752843448165,0.69062775,119580.0,119570.0,1.71134764]
[1752843452261,0.69062775,119580.0,119570.0,1.72114862]
[1752843452762,0.69062775,119580.0,119570.0,1.29614227]
[1752843452964,0.69062775,119580.0,119570.0,1.72114862]
[1752843455870,0.69062775,119580.0,119570.0,1.76603423]
[1752843456565,0.2656214,119580.0,119570.0,1.76603423]
[1752843456869,0.69062775,119580.0,119570.0,1.76603423]
[1752843457769,0.2656214,119580.0,119570.0,1.76603423]
[1752843457964,0.69062775,119580.0,119570.0,1.76603423]
[1752843458165,0.69062775,119580.0,119570.0,1.35163788]
[1752843458365,0.69062775,119580.0,119570.0,1.34455583]
[1752843458567,0.69062775,119580.0,119570.0,1.76956218]
[1752843461167,0.69062775,119580.0,119570.0,1.34455583]
[1752843461368,0.69062775,119580.0,119570.0,1.76956218]
[1752843462672,0.69062775,119580.0,119570.0,1.34455583]
[1752843462868,0.69062775,119580.0,119570.0,1.76956218]
[1752843463873,0.2656214,119580.0,119570.0,1.76956218]
[1752843464074,0.69062775,119580.0,119570.0,1.76956218]
[1752843464573,0.69062775,119580.0,119570.0,1.76956195]
[1752843464873,0.69062775,119580.0,119570.0,1.76958482]
[1752843465074,0.65588775,119580.0,119570.0,1.76958482]
[1752843465775,0.65977775,119580.0,119570.0,1.76958482]
[1752843466074,0.69151775,119580.0,119570.0,1.76958482]
[1752843466774,0.69151775,119580.0,119570.0,1.34457847]
[1752843467074,0.69151775,119580.0,119570.0,1.76958482]
[1752843467269,0.69151775,119580.0,119570.0,1.34457847]
[1752843467870,0.69151775,119580.0,119570.0,1.76958482]
[1752843469774,0.2665114,119580.0,119570.0,1.76958482]
[1752843470074,0.69151775,119580.0,119570.0,1.76958482]
[1752843470977,0.69151775,119580.0,119570.0,1.75897482]
[1752843471374,0.69151775,119580.0,119570.0,1.33396847]
[1752843471678,0.69151775,119580.0,119570.0,1.75897482]
[1752843471977,0.2665114,119580.0,119570.0,1.75897482]
[1752843472177,0.69151775,119580.0,119570.0,1.71408921]
[1752843472677,0.2665114,119580.0,119570.0,1.71408921]
[1752843472877,0.69151775,119580.0,119570.0,1.71408921]
[1752843473180,0.69151775,119580.0,119570.0,1.71336921]
[1752843473478,0.69151775,119580.0,119570.0,1.71336933]
[1752843474178,0.69151775,119580.0,119570.0,1.59116512]
[1752843474683,0.69151775,119580.0,119570.0,1.75834052]
[1752843474980,0.69151775,119580.0,119570.0,0.58831877]
[1752843475183,0.69151775,119580.0,119570.0,0.56553877]
[1752843475383,0.69151775,119580.0,119570.0,1.14329877]
[1752843476482,0.69151775,119580.0,119570.0,1.14337915]
[1752843476681,0.69151775,119580.0,119570.0,1.14333915]
[1752843477588,0.69151775,119580.0,119570.0,1.1733185]
[1752843478483,0.69151775,119580.0,119570.0,1.3404939]
[1752843478989,0.2665114,119580.0,119570.0,1.3404939]
[1752843479189,0.69151775,119580.0,119570.0,1.1733185]
[1752843479689,0.2665114,119580.0,119570.0,1.1733185]
[1752843479889,0.69151775,119580.0,119570.0,1.1733185]
[1752843481186,1.64458011,119580.0,119570.0,0.1093658]
[1752843481391,0.1831654,119570.0,119560.0,0.04497119]
[1752843481594,0.70323839,119570.0,119560.0,0.60400402]
[1752843481892,0.70323839,119570.0,119560.0,0.58720184]
[1752843482091,1.06403839,119570.0,119560.0,0.58720184]
[1752843482488,1.06403839,119570.0,119560.0,0.6096808]
[1752843482687,1.06503839,119570.0,119560.0,0.6096808]
[1752843482887,1.06703839,119570.0,119560.0,0.6096808]
[1752843483491,1.06703839,119570.0,119560.0,0.58720184]
[1752843483993,1.06703839,119570.0,119560.0,0.58720309]
[1752843484482,1.07506151,119570.0,119560.0,0.5774]
[1752843484788,1.07506151,119570.0,119560.0,0.58720354]
[1752843485292,1.07506151,119570.0,119560.0,0.5774]
[1752843485992,0.65005516,119570.0,119560.0,0.59449442]
[1752843486194,1.07506151,119570.0,119560.0,0.59449442]
[1752843486400,1.06703839,119570.0,119560.0,0.59449442]
[1752843486888,1.06703839,119570.0,119560.0,0.77700382]
[1752843487088,1.06703839,119570.0,119560.0,1.10206077]
[1752843487394,1.06703839,119570.0,119560.0,0.67705442]
[1752843487891,1.06703839,119570.0,119560.0,0.65277442]
[1752843488093,0.64203204,119570.0,119560.0,0.65277442]
[1752843488293,1.06703839,119570.0,119560.0,0.65277442]
[1752843488993,1.06703839,119570.0,119560.0,0.81996382]
[1752843489192,1.06703839,119570.0,119560.0,0.65277442]
[1752843495297,1.06703839,119570.0,119560.0,0.67705442]
[1752843495800,1.06703839,119570.0,119560.0,0.68317442]
[1752843496401,1.06703839,119570.0,119560.0,0.67705442]
[1752843497696,1.06703839,119570.0,119560.0,0.60981442]
[1752843499801,1.06703839,119570.0,119560.0,0.59449442]
[1752843501101,0.2028593,119560.0,119550.0,0.68443777]
[1752843501400,0.68326565,119560.0,119550.0,0.70022777]
[1752843502209,1.04406565,119560.0,119550.0,0.63224]
[1752843502408,1.04406565,119560.0,119550.0,0.63424]
[1752843503510,1.05211203,119560.0,119550.0,0.63424]
[1752843503711,1.04406565,119560.0,119550.0,0.63424]
[1752843504606,0.2582873,119540.0,119530.0,0.03967008]
[1752843504812,1.04409365,119540.0,119530.0,0.58688495]
[1752843505006,1.4691,119540.0,119530.0,8e-08]
[1752843505208,1.4137,119540.0,119530.0,8e-08]
[1752843505505,0.98869365,119540.0,119530.0,8e-08]
[1752843505911,0.99688791,119540.0,119530.0,8e-08]
[1752843506212,0.61949156,119540.0,119530.0,0.00300008]
[1752843506413,1.05228791,119540.0,119530.0,0.00300008]
[1752843506613,1.62940791,119540.0,119530.0,0.00300008]
[1752843506809,1.62940791,119540.0,119530.0,8e-08]
[1752843507014,1.58251379,119540.0,119530.0,0.00100008]
[1752843507811,1.58251379,119540.0,119530.0,0.00200008]
[1752843509815,1.58251379,119540.0,119530.0,0.002]
[1752843514309,0.2583012,119530.0,119520.0,0.62535379]
[1752843514510,0.99721343,119530.0,119520.0,0.62535379]
[1752843514716,0.99721343,119530.0,119520.0,0.64983379]
[1752843514916,0.99721343,119530.0,119520.0,0.23991899]
[1752843515418,0.99721343,119530.0,119520.0,0.07267379]
[1752843515618,0.99721343,119530.0,119520.0,0.24091899]
[1752843515817,0.99721343,119530.0,119520.0,0.24291899]
[1752843516319,0.6191012,119530.0,119520.0,0.24663899]
[1752843516517,0.63641343,119530.0,119520.0,0.63009899]
[1752843516919,0.63641343,119530.0,119520.0,1.20725899]
[1752843517118,0.63641343,119530.0,119520.0,1.59304122]
[1752843517119,0.2583012,119530.0,119520.0,1.59304122]
[1752843517309,0.2192012,119530.0,119520.0,1.59304122]
[1752843517817,0.1672312,119530.0,119520.0,1.63278889]
[1752843518017,0.3062431,119540.0,119530.0,0.2490712]
[1752843518217,0.2508431,119540.0,119530.0,0.99565343]
[1752843518417,0.2090358,119540.0,119530.0,1.00545751]
[1752843518918,0.2090358,119540.0,119530.0,0.62734528]
[1752843519218,0.2331158,119540.0,119530.0,0.62734528]
[1752843519418,0.2409058,119540.0,119530.0,0.62734528]
[1752843519929,0.1990992,119540.0,119530.0,0.62734528]
[1752843520118,0.03187,119540.0,119530.0,0.62734528]
[1752843520619,0.1990873,119540.0,119530.0,0.62734528]
[1752843520818,0.03187,119540.0,119530.0,1.00545751]
[1752843521017,0.1990873,119540.0,119530.0,1.20978528]
[1752843521221,0.63639953,119540.0,119530.0,1.04255408]
[1752843521626,0.2582873,119540.0,119530.0,1.04255408]
[1752843521815,0.2582873,119540.0,119530.0,1.20978538]
[1752843522021,0.63639953,119540.0,119530.0,1.20978538]
[1752843522222,0.2582873,119540.0,119530.0,1.04255408]
[1752843522423,0.63639953,119540.0,119530.0,1.20978538]
[1752843523423,0.2582873,119540.0,119530.0,1.20978538]
[1752843523824,0.63639953,119540.0,119530.0,1.20978538]
[1752843525821,0.63639953,119540.0,119530.0,1.23972781]
[1752843527429,0.46918223,119540.0,119530.0,1.07249651]
[1752843527728,0.46918223,119540.0,119530.0,1.04255408]
[1752843528227,0.09107,119540.0,119530.0,1.04255408]
[1752843528631,0.46918223,119540.0,119530.0,1.04255408]
[1752843530228,0.09107,119540.0,119530.0,1.04255408]
[1752843530629,0.46918223,119540.0,119530.0,1.04255408]
[1752843531026,0.09107,119540.0,119530.0,1.04255408]
[1752843533734,0.46918223,119540.0,119530.0,1.04255408]
[1752843534230,0.09107,119540.0,119530.0,1.04255408]
[1752843534429,0.46918223,119540.0,119530.0,1.04255408]
[1752843535030,0.48787092,119540.0,119530.0,1.04255408]
[1752843536432,0.48787092,119540.0,119530.0,1.04255471]
[1752843537130,0.10975869,119540.0,119530.0,1.04255471]
[1752843537327,0.48787092,119540.0,119530.0,1.04255471]
[1752843539127,0.10975869,119540.0,119530.0,1.04255471]
[1752843539431,0.48787092,119540.0,119530.0,1.04255465]
[1752843539730,0.10975869,119540.0,119530.0,1.04255465]
[1752843539928,0.09107,119540.0,119530.0,1.04255465]
[1752843540135,0.46918223,119540.0,119530.0,1.04255465]
[1752843541832,0.46918223,119540.0,119530.0,0.46011465]
[1752843542031,0.46918223,119540.0,119530.0,1.04755465]
[1752843543234,0.09107,119540.0,119530.0,1.04755465]
[1752843543532,0.09107,119540.0,119530.0,1.07754776]
[1752843543533,0.46918223,119540.0,119530.0,1.07754776]
[1752843545628,0.09107,119540.0,119530.0,1.07754776]
[1752843545832,0.46918223,119540.0,119530.0,1.07754776]
[1752843546333,0.46918223,119540.0,119530.0,0.71674776]
[1752843546925,0.09107,119540.0,119530.0,0.71674776]
[1752843547125,0.46918223,119540.0,119530.0,0.71674776]
[1752843547335,0.46918223,119540.0,119530.0,0.76173743]
[1752843547633,0.46918223,119540.0,119530.0,0.71674776]
[1752843548337,0.46918223,119540.0,119530.0,0.74012219]
[1752843549239,0.09107,119540.0,119530.0,0.74012219]
[1752843549442,0.46918223,119540.0,119530.0,0.74012219]
[1752843549633,0.09107,119540.0,119530.0,0.74012219]
[1752843549838,0.46918223,119540.0,119530.0,0.74012219]
[1752843550039,0.09107,119540.0,119530.0,0.74012219]
[1752843550237,0.46918223,119540.0,119530.0,0.74012219]
[1752843551341,0.09107,119540.0,119530.0,0.74012219]
[1752843551542,0.03187,119540.0,119530.0,0.74012219]
[1752843551938,0.05601,119540.0,119530.0,0.74012219]
[1752843552138,0.09102,119540.0,119530.0,0.74012219]
[1752843552441,0.41602,119550.0,119540.0,0.05456]